fUSD/lending_fUSD_20240829
["ID","MTS","AMOUNT","RATE_DAILY","PERIOD"]
[336612605,1724973039677,-511.7036677,0.00024657,4]
[336612606,1724973039686,-511.36032854,0.00024657,4]
[336612607,1724973039698,-500.0,0.00024657,4]
[336612608,1724973039707,-500.0,0.00024657,4]
[336612609,1724973039717,-500.0,0.00024657,4]
[336612610,1724973039727,-500.0,0.00024657,4]
[336612611,1724973039737,-500.0,0.00024657,4]
[336612612,1724973039748,-500.0,0.00024657,4]
[336612613,1724973039758,-500.0,0.00024657,4]
[336612614,1724973039768,-500.0,0.00024657,4]
[336612615,1724973039778,-500.0,0.00024657,4]
[336612616,1724973039788,-500.0,0.00024657,4]
[336612617,1724973039797,-500.0,0.00024657,4]
[336612618,1724973039807,-500.0,0.00024657,4]
[336612619,1724973039815,-500.0,0.00024657,4]
[336612620,1724973039826,-500.0,0.00024657,4]
[336612621,1724973039835,-500.0,0.00024657,4]
[336612622,1724973039845,-500.0,0.00024657,4]
[336612623,1724973039855,-500.0,0.00024657,4]
[336612624,1724973039864,-500.0,0.00024657,4]
[336612625,1724973039873,-500.0,0.00024657,4]
[336612626,1724973039883,-500.0,0.00024657,4]
[336612627,1724973039892,-500.0,0.00024657,4]
[336612629,1724973039903,-500.0,0.00024657,4]
[336612631,1724973039912,-500.0,0.00024657,4]
[336612632,1724973039922,-500.0,0.00024657,4]
[336612633,1724973039931,-500.0,0.00024657,4]
[336612634,1724973039941,-500.0,0.00024657,4]
[336612635,1724973039950,-596.75312692,0.00024657,4]
[336612636,1724973039960,-500.0,0.00024657,4]
[336612637,1724973039969,-500.0,0.00024657,4]
[336612638,1724973039979,-601.7645012,0.00024657,4]
[336612639,1724973039988,-500.0,0.00024657,4]
[336612640,1724973039998,-500.0,0.00024657,4]
[336612641,1724973040007,-500.0,0.00024657,4]
[336612642,1724973040017,-500.0,0.00024657,4]
[336612643,1724973040026,-500.0,0.00024657,4]
[336612644,1724973040036,-527.87672747,0.00024657,4]
[336612645,1724973040044,-500.0,0.00024657,4]
[336612646,1724973040053,-217.11897429,0.00024657,4]
[336612647,1724973040063,-500.0,0.00024657,4]
[336612648,1724973040073,-529.62,0.00024657,4]
[336612649,1724973040082,-500.0,0.00024657,4]
[336612650,1724973040094,-500.0,0.00024657,4]
[336612651,1724973040104,-500.0,0.00024657,4]
[336612652,1724973040114,-246.15259016,0.00024657,4]
[336612653,1724973040123,-500.0,0.00024657,4]
[336612654,1724973040132,-500.0,0.00024657,4]
[336612655,1724973040142,-500.0,0.00024657,4]
[336612656,1724973040151,-500.0,0.00024657,4]
[336612657,1724973040160,-823.66,0.00024657,4]
[336612658,1724973040169,-823.66,0.00024657,4]
[336612659,1724973040178,-500.0,0.00024657,4]
[336612660,1724973040187,-500.0,0.00024657,4]
[336612661,1724973040197,-500.0,0.00024657,4]
[336612662,1724973040206,-500.0,0.00024657,4]
[336612663,1724973040215,-514.11585527,0.00024657,4]
[336612664,1724973040224,-500.0,0.00024657,4]
[336612665,1724973040233,-307.1146301,0.00024657,4]
[336612666,1724973040242,-500.0,0.00024657,4]
[336612667,1724973040251,-500.0,0.00024657,4]
[336612668,1724973040260,-522.48500312,0.00024657,4]
[336612669,1724973040270,-196.89771019,0.00024657,4]
[336612670,1724973040278,-500.0,0.00024657,4]
[336612671,1724973040289,-256.76,0.00024657,4]
[336612673,1724973040299,-500.0,0.00024657,4]
[336612675,1724973040308,-500.0,0.00024657,4]
[336612677,1724973040317,-370.19,0.00024657,4]
[336612679,1724973040326,-500.0,0.00024657,4]
[336612681,1724973040335,-500.0,0.00024657,4]
[336612683,1724973040344,-500.0,0.00024657,4]
[336612685,1724973040353,-500.0,0.00024657,4]
[336612687,1724973040362,-500.0,0.00024657,4]
[336612689,1724973040371,-500.0,0.00024657,4]
[336612690,1724973040381,-500.0,0.00024657,4]
[336612692,1724973040391,-500.0,0.00024657,4]
[336612694,1724973040403,-500.0,0.00024657,2]
[336612697,1724973040416,-500.0,0.00024657,4]
[336612699,1724973040426,-511.36490943,0.00024657,4]
[336612701,1724973040436,-500.0,0.00024657,4]
[336612703,1724973040446,-500.0,0.00024657,4]
[336612705,1724973040457,-500.0,0.00024657,4]
[336612707,1724973040466,-500.0,0.00024657,4]
[336612709,1724973040478,-500.0,0.00024657,4]
[336612711,1724973040488,-153.99859079,0.00024657,4]
[336612713,1724973040499,-500.0,0.00024657,4]
[336612715,1724973040508,-500.0,0.00024657,4]
[336612717,1724973040520,-500.0,0.00024657,4]
[336612719,1724973040530,-500.0,0.00024657,4]
[336612721,1724973040539,-500.0,0.00024657,4]
[336612723,1724973040549,-176.46566984,0.00024657,4]
[336612725,1724973040560,-500.0,0.00024657,4]
[336612727,1724973040570,-500.0,0.00024657,4]
[336612729,1724973040580,-500.0,0.00024657,4]
[336612731,1724973040590,-611.98,0.00024657,4]
[336612733,1724973040601,-501.27890669,0.00024657,4]
[336612735,1724973040612,-500.0,0.00024657,4]
[336612737,1724973040622,-500.0,0.00024657,4]
[336612740,1724973040633,-500.0,0.00024657,4]
[336612742,1724973040643,-500.0,0.00024657,4]
[336612744,1724973040655,-500.0,0.00024657,4]
[336612746,1724973040664,-500.0,0.00024657,4]
[336612747,1724973040673,-520.76227965,0.00024657,4]
[336612749,1724973040682,-500.0,0.00024657,4]
[336612751,1724973040691,-500.0,0.00024657,4]
[336612753,1724973040700,-500.0,0.00024657,4]
[336612755,1724973040710,-500.0,0.00024657,4]
[336612757,1724973040719,-500.0,0.00024657,4]
[336612759,1724973040728,-500.0,0.00024657,4]
[336612761,1724973040737,-500.0,0.00024657,4]
[336612762,1724973040746,-500.0,0.00024657,4]
[336612764,1724973040756,-500.0,0.00024657,4]
[336612766,1724973040765,-500.0,0.00024657,4]
[336612768,1724973040774,-500.0,0.00024657,4]
[336612770,1724973040784,-518.89478355,0.00024657,4]
[336612772,1724973040793,-500.0,0.00024657,4]
[336612774,1724973040803,-500.0,0.00024657,4]
[336612776,1724973040813,-245.24198165,0.00024657,4]
[336612778,1724973040823,-447.25303996,0.00024657,4]
[336612780,1724973040832,-500.0,0.00024657,4]
[336612782,1724973040843,-500.0,0.00024657,4]
[336612784,1724973040852,-500.0,0.00024657,4]
[336612786,1724973040862,-500.0,0.00024657,4]
[336612788,1724973040872,-500.0,0.00024657,4]
[336612790,1724973040882,-500.0,0.00024657,4]
[336612792,1724973040891,-526.79072662,0.00024657,4]
[336612794,1724973040904,-500.0,0.00024657,4]
[336612796,1724973040913,-500.0,0.00024657,4]
[336612798,1724973040922,-500.0,0.00024657,4]
[336612800,1724973040932,-516.69135641,0.00024657,4]
[336612802,1724973040941,-534.9046705,0.00024657,4]
[336612804,1724973040951,-500.0,0.00024657,4]
[336612806,1724973040960,-500.48147607,0.00024657,4]
[336612808,1724973040970,-519.48,0.00024657,4]
[336612810,1724973040980,-529.41361368,0.00024657,4]
[336612812,1724973040989,-500.0,0.00024657,4]
[336612813,1724973040998,-500.0,0.00024657,4]
[336612815,1724973041008,-510.07636386,0.00024657,4]
[336612817,1724973041017,-500.0,0.00024657,4]
[336612819,1724973041027,-500.0,0.00024657,4]
[336612821,1724973041036,-521.45241238,0.00024657,4]
[336612823,1724973041046,-534.26588697,0.00024657,4]
[336612825,1724973041055,-500.0,0.00024657,4]
[336612827,1724973041065,-500.0,0.00024657,4]
[336612829,1724973041074,-500.0,0.00024657,4]
[336612831,1724973041083,-500.0,0.00024657,4]
[336612833,1724973041093,-506.49038708,0.00024657,4]
[336612835,1724973041102,-509.17864741,0.00024657,4]
[336612837,1724973041111,-500.0,0.00024657,4]
[336612839,1724973041120,-317.98009107,0.00024657,4]
[336612841,1724973041129,-500.0,0.00024657,4]
[336612843,1724973041139,-500.0,0.00024657,4]
[336612844,1724973041148,-500.0,0.00024657,4]
[336612846,1724973041158,-410.01854498,0.00024657,4]
[336612848,1724973041167,-500.0,0.00024657,4]
[336612850,1724973041176,-439.41233671,0.00024657,4]
[336612852,1724973041186,-500.0,0.00024657,4]
[336612854,1724973041195,-500.0,0.00024657,4]
[336612856,1724973041204,-500.0,0.00024657,4]
[336612858,1724973041213,-500.0,0.00024657,4]
[336612860,1724973041223,-500.0,0.00024657,4]
[336612862,1724973041232,-500.0,0.00024657,4]
[336612864,1724973041242,-500.0,0.00024657,4]
[336612866,1724973041251,-537.13958907,0.00024657,4]
[336612868,1724973041261,-500.0,0.00024657,4]
[336612870,1724973041270,-500.0,0.00024657,4]
[336612872,1724973041280,-174.81510152,0.00024657,4]
[336612874,1724973041289,-500.0,0.00024657,4]
[336612876,1724973041298,-500.0,0.00024657,4]
[336612878,1724973041308,-500.0,0.00024657,4]
[336612880,1724973041317,-500.0,0.00024657,4]
[336612882,1724973041326,-500.0,0.00024657,4]
[336612884,1724973041335,-500.0,0.00024657,4]
[336612885,1724973041344,-416.94380806,0.00024657,4]
[336612887,1724973041354,-500.0,0.00024657,4]
[336612889,1724973041363,-358.36615225,0.00024657,4]
[336612891,1724973041372,-500.0,0.00024657,4]
[336612893,1724973041382,-266.8731508,0.00024657,4]
[336612895,1724973041392,-500.0,0.00024657,4]
[336612897,1724973041403,-500.0,0.00024657,4]
[336612898,1724973041417,-500.0,0.00024657,4]
[336612900,1724973041427,-500.0,0.00024657,4]
[336612902,1724973041438,-500.0,0.00024657,4]
[336612904,1724973041448,-500.0,0.00024657,4]
[336612906,1724973041458,-84.68837635,0.00024657,4]
[336612909,1724973041474,-415.31162365,0.00024657,4]
[336612910,1724973041483,-176.35085635,0.00024657,4]
[336612912,1724973041496,-291.69999996,0.00024657,4]
[336612913,1724973041553,-31.94914369,0.00024657,4]
[336612914,1724973041563,-249.43085642,0.00024657,4]
[336612915,1724973041578,-250.56914358,0.00024657,4]
[336612916,1724973041588,-500.0,0.00024657,4]
[336612917,1724973041600,-452.27137618,0.00024657,4]
[336612918,1724973041614,-47.72862382,0.00024657,4]
[336612919,1724973041624,-301.64012354,0.00024657,4]
[336612920,1724973041636,-198.35987646,0.00024657,4]
[336612921,1724973041645,-271.41693383,0.00024657,4]
[336612922,1724973041671,-228.58306617,0.00024657,4]
[336612923,1724973041680,-364.13597383,0.00024657,4]
[336612927,1724973042955,-135.86402617,0.00024657,4]
[336612928,1724973042966,-303.03180024,0.00024657,4]
[336612929,1724973042975,-505.93296402,0.00024657,4]
[336612930,1724973042985,-500.0,0.00024657,4]
[336612931,1724973042994,-513.90007378,0.00024657,4]
[336612932,1724973043004,-500.0,0.00024657,4]
[336612933,1724973043013,-500.0,0.00024657,4]
[336612934,1724973043023,-176.87376073,0.00024657,4]
[336612935,1724973043034,-500.0,0.00024657,4]
[336612936,1724973043044,-500.0,0.00024657,4]
[336612937,1724973043055,-500.0,0.00024657,4]
[336612938,1724973043064,-500.0,0.00024657,4]
[336612939,1724973043073,-509.2,0.00024657,4]
[336612940,1724973043083,-501.4614659,0.00024657,4]
[336612941,1724973043092,-200.0,0.00024673,2]
[336612942,1724973043102,-500.0,0.00024673,2]
[336612943,1724973043111,-4360.20642437,0.00024679,2]
[336612944,1724973043120,-500.0,0.00024701,2]
[336612945,1724973043129,-4360.20642437,0.00024709,2]
[336612946,1724973043138,-500.0,0.00024716,2]
[336612947,1724973043148,-500.0,0.00024731,2]
[336612948,1724973043161,-4360.20642437,0.0002474,2]
[336612949,1724973043171,-500.0,0.00024769,4]
[336612950,1724973043180,-4360.20642437,0.0002477,2]
[336612951,1724973043189,-800.0,0.00024795,2]
[336612952,1724973043198,-2691.79802503,0.000248,4]
[336612953,1724973043209,-593.58,0.000248,4]
[336612954,1724973043220,-1231.41120172,0.000248,4]
[336612956,1724973044973,-880.1249995,0.000248,4]
[336612957,1724973044985,-1431.48577375,0.000248,4]
[336612958,1724973044994,-500.0,0.000248,4]
[336612959,1724973045004,-500.0,0.000248,4]
[336612960,1724973045013,-500.0,0.000248,4]
[336612961,1724973045023,-823.66,0.000248,4]
[336612962,1724973045033,-500.0,0.000248,4]
[336612963,1724973045042,-4244.85422625,0.00024801,2]
[336612964,1724973045054,-115.35219812,0.00024801,2]
[336612965,1724973045063,-150.0,0.00024813,2]
[336612966,1724973045073,-174.29338501,0.00024831,2]
[336612967,1724973045082,-4360.20642437,0.00024831,2]
[336612968,1724973045092,-460.13557904,0.00024831,2]
[336612969,1724973045101,-199.80911188,0.00024831,2]
[336612970,1724973045111,-500.0,0.0002487,2]
[336612971,1724973045121,-180.0,0.00024874,2]
[336612972,1724973045130,-1000.0,0.00024899,2]
[336612973,1724973045139,-2000.0,0.000249,2]
[336612974,1724973045149,-1676.81689066,0.000249,2]
[336612976,1724973046131,-500.0,0.00024394,2]
[336612977,1724973046140,-323.18310934,0.000249,2]
[336612978,1724973046150,-193.0,0.000249,8]
[336612979,1724973046159,-150.0,0.000249,6]
[336612980,1724973046169,-256.76,0.00024908,4]
[336612981,1724973046178,-500.0,0.00024908,4]
[336612982,1724973046187,-295.22,0.00024908,4]
[336612983,1724973046196,-14852.97,0.00024908,4]
[336612984,1724973046205,-285.52410619,0.00024908,4]
[336612986,1724973046214,-500.0,0.00024908,4]
[336612988,1724973046223,-500.0,0.00024908,4]
[336612990,1724973046232,-500.0,0.00024908,4]
[336612992,1724973046241,-300.53811738,0.00024909,2]
[336612994,1724973046250,-6828.4,0.00024909,4]
[336612995,1724973046259,-500.0,0.00024909,4]
[336612997,1724973046268,-535.06,0.00024909,4]
[336612999,1724973046277,-500.0,0.00024909,4]
[336613001,1724973046286,-93.51000618,0.00024909,4]
[336613003,1724973046297,-279.8,0.00024909,4]
[336613005,1724973046308,-450.34999382,0.00024909,4]
[336613007,1724973046318,-281.01,0.00024909,4]
[336613009,1724973046327,-500.0,0.00024909,4]
[336613011,1724973046335,-4670.85400618,0.0002491,4]
[336613013,1724973046346,-933.17494973,0.0002491,4]
[336613015,1724973046357,-564.2637225,0.0002491,4]
[336613180,1724973285665,500.0,0.00024,120]
[336613181,1724973563707,548.88,0.00023197,120]
[336613182,1724973855384,555.0,0.00024,120]
[336613183,1724973925094,200.44,0.00010959,2]
[336613185,1724973929033,3172.26052996,0.000101,2]
[336613186,1724973949577,356.68,0.00010959,2]
[336613187,1724973953218,7665.00101707,0.00010399,2]
[336613189,1724973986826,355.0,0.00010899,2]
[336613190,1724974014480,276.81155444,0.0001089,2]
[336613192,1724974022437,356.57104464,0.000109,2]
[336613193,1724974041476,888.0,0.00024,120]
[336613194,1724974057479,400.0,0.000104,3]
[336613195,1724974058089,171.00436811,0.0001089,2]
[336613196,1724974059636,800.0,0.000105,3]
[336613197,1724974061735,1200.0,0.000106,3]
[336613198,1724974063832,1600.0,0.000107,3]
[336613199,1724974065927,2000.0,0.000108,3]
[336613200,1724974068037,400.0,0.000109,3]
[336613201,1724974076794,455.0,0.00010899,2]
[336613209,1724974116902,269.61531831,0.0002,60]
[336613210,1724974141336,356.57104463,0.000109,2]
[336613226,1724974231956,-522.82863702,0.00010988,2]
[336613229,1724974231965,-1674.54549483,0.0001099,2]
[336613231,1724974231975,-154.8,0.0001099,2]
[336613233,1724974231986,-154.8,0.0001099,2]
[336613234,1724974231995,-154.8,0.0001099,2]
[336613236,1724974232005,-1276.96040466,0.0001099,2]
[336613238,1724974232016,-666.0,0.0001099,2]
[336613240,1724974232026,-1674.54549483,0.0001099,2]
[336613241,1724974232035,-1674.54549483,0.0001099,2]
[336613243,1724974232045,-154.8,0.0001099,2]
[336613245,1724974232054,-154.8,0.0001099,2]
[336613246,1724974232064,-154.8,0.0001099,2]
[336613248,1724974232073,-154.8,0.0001099,2]
[336613250,1724974232086,-154.8,0.0001099,2]
[336613251,1724974232103,-154.8,0.0001099,2]
[336613253,1724974232113,-154.8,0.0001099,2]
[336613255,1724974232122,-154.8,0.0001099,2]
[336613257,1724974232131,-154.8,0.0001099,2]
[336613259,1724974232141,-154.8,0.0001099,2]
[336613260,1724974232150,-154.8,0.0001099,2]
[336613261,1724974232159,-150.0,0.00010998,2]
[336613262,1724974232169,-5456.96,0.00010998,2]
[336613263,1724974232178,-22276.65459461,0.00010999,2]
[336613265,1724974232188,-490.206285,0.00010999,2]
[336613267,1724974232198,-150.0,0.00010999,2]
[336613269,1724974232208,-150.0,0.00010999,7]
[336613271,1724974232217,-150.0,0.00010999,7]
[336613273,1724974232227,-150.0,0.00010999,7]
[336613274,1724974232236,-500.0,0.00010999,2]
[336613276,1724974232245,-500.0,0.00010999,2]
[336613279,1724974232256,-500.0,0.00010999,2]
[336613280,1724974232266,-500.0,0.00010999,2]
[336613281,1724974232275,-500.0,0.00010999,2]
[336613282,1724974232285,-340.17941669,0.00010999,2]
[336613283,1724974232294,-500.0,0.00010999,2]
[336613284,1724974232303,-500.0,0.00010999,2]
[336613285,1724974232312,-500.0,0.00010999,2]
[336613286,1724974232322,-500.0,0.00010999,2]
[336613287,1724974232331,-500.0,0.00010999,2]
[336613288,1724974232344,-500.0,0.00010999,2]
[336613289,1724974232354,-500.0,0.00010999,2]
[336613290,1724974232363,-500.0,0.00010999,2]
[336613291,1724974232372,-500.0,0.00010999,2]
[336613292,1724974232382,-500.0,0.00010999,2]
[336613293,1724974232391,-500.0,0.00010999,2]
[336613294,1724974232400,-539.38895048,0.00010999,2]
[336613295,1724974232409,-500.0,0.00010999,2]
[336613296,1724974232418,-500.0,0.00010999,2]
[336613297,1724974232428,-500.0,0.00010999,2]
[336613298,1724974232437,-500.0,0.00010999,2]
[336613299,1724974232447,-500.0,0.00010999,2]
[336613300,1724974232456,-500.0,0.00010999,2]
[336613301,1724974232465,-500.0,0.00010999,2]
[336613302,1724974232474,-500.0,0.00010999,2]
[336613303,1724974232483,-500.0,0.00010999,2]
[336613304,1724974232493,-500.0,0.00010999,2]
[336613305,1724974232502,-500.0,0.00010999,2]
[336613306,1724974232510,-500.0,0.00010999,2]
[336613307,1724974232519,-500.0,0.00010999,2]
[336613308,1724974232528,-500.0,0.00010999,2]
[336613309,1724974232537,-500.0,0.00010999,2]
[336613310,1724974232546,-307.16715809,0.00010999,2]
[336613311,1724974232555,-500.0,0.00010999,2]
[336613312,1724974232563,-500.0,0.00010999,2]
[336613313,1724974232572,-500.0,0.00010999,2]
[336613314,1724974232581,-500.0,0.00010999,2]
[336613315,1724974232591,-500.0,0.00010999,2]
[336613316,1724974232600,-500.0,0.00010999,2]
[336613317,1724974232609,-500.0,0.00010999,2]
[336613318,1724974232618,-500.0,0.00010999,2]
[336613319,1724974232627,-500.0,0.00010999,2]
[336613320,1724974232636,-500.0,0.00010999,2]
[336613321,1724974232646,-500.0,0.00010999,2]
[336613322,1724974232655,-500.0,0.00010999,2]
[336613323,1724974232664,-500.0,0.00010999,2]
[336613324,1724974232673,-500.0,0.00010999,2]
[336613325,1724974232682,-500.0,0.00010999,2]
[336613326,1724974232692,-500.0,0.00010999,2]
[336613327,1724974233045,-500.0,0.00010999,2]
[336613328,1724974233055,-500.0,0.00010999,2]
[336613329,1724974233064,-500.0,0.00010999,2]
[336613330,1724974233074,-500.0,0.00010999,2]
[336613331,1724974233085,-500.0,0.00010999,2]
[336613332,1724974233094,-500.0,0.00010999,2]
[336613333,1724974233104,-500.0,0.00010999,2]
[336613334,1724974233113,-500.0,0.00010999,2]
[336613335,1724974233122,-500.0,0.00010999,2]
[336613336,1724974233131,-500.0,0.00010999,2]
[336613337,1724974233140,-500.0,0.00010999,2]
[336613338,1724974233149,-500.0,0.00010999,2]
[336613339,1724974233159,-500.0,0.00010999,2]
[336613340,1724974233168,-500.0,0.00010999,2]
[336613341,1724974233177,-500.0,0.00010999,2]
[336613342,1724974233187,-500.0,0.00010999,2]
[336613343,1724974233196,-500.0,0.00010999,2]
[336613344,1724974233206,-500.0,0.00010999,2]
[336613345,1724974233215,-500.0,0.00010999,2]
[336613346,1724974233225,-500.0,0.00010999,2]
[336613347,1724974233234,-500.0,0.00010999,2]
[336613348,1724974233244,-500.0,0.00010999,2]
[336613349,1724974233254,-500.0,0.00010999,2]
[336613350,1724974233263,-500.0,0.00010999,2]
[336613351,1724974233272,-500.0,0.00010999,2]
[336613352,1724974233281,-500.0,0.00010999,2]
[336613353,1724974233291,-191.7740039,0.00011,2]
[336613354,1724974233300,-175242.55342445,0.00011,2]
[336613355,1724974233313,-1000.0,0.00011,2]
[336613356,1724974233324,-2584.73800879,0.00011,2]
[336613357,1724974233338,-307.8334,0.00011,2]
[336613358,1724974233358,-600.0,0.00011,2]
[336613359,1724974233369,-571.61940899,0.00011,2]
[336613360,1724974233381,-1908.19961553,0.00011,2]
[336613361,1724974233392,-669.94125223,0.00011,2]
[336613362,1724974233408,-959.0,0.00011,2]
[336613363,1724974233419,-535.8515108,0.00011,2]
[336613364,1724974233429,-6787.24808578,0.00011,2]
[336613365,1724974233441,-2688.83423824,0.00011,2]
[336613366,1724974233451,-2743.0,0.00011,2]
[336613367,1724974233462,-5371.78642001,0.00011,2]
[336613368,1724974233473,-1409.39774727,0.00011,2]
[336613369,1724974233484,-609.67999998,0.00011,2]
[336613370,1724974233496,-4389.71388745,0.00011,2]
[336613374,1724974238029,-382.86005199,0.00010997,2]
[336613376,1724974238158,-468.50164004,0.00010997,2]
[336613377,1724974238170,-1849.01762945,0.00010997,2]
[336613378,1724974238181,-9922.60158578,0.00010997,2]
[336613379,1724974238195,-48174.09603063,0.00011,2]
[336613380,1724974238213,-319.8,0.00011,2]
[336613381,1724974238224,-4308.61339183,0.00011,2]
[336613382,1724974238236,-64814.57144029,0.00011,2]
[336613383,1724974238284,-1380967.07779506,0.00011,2]
[336613384,1724974238295,-305978.83877592,0.00011,2]
[336613385,1724974238307,-7991.34343518,0.00011,2]
[336613386,1724974238319,-32211.70718728,0.00011,2]
[336613387,1724974238330,-6912.47775104,0.00011,2]
[336613388,1724974238343,-31168.5752421,0.00011,2]
[336613389,1724974238354,-617.79108736,0.00011,2]
[336613391,1724974238366,-233712.87297302,0.00011,2]
[336613394,1724974238377,-668.26362144,0.00011,2]
[336613396,1724974238388,-2730.40354718,0.00011,2]
[336613398,1724974238399,-311.21120683,0.00011,2]
[336613400,1724974238411,-795.0000001,0.00011,2]
[336613442,1724974240460,-1396.69046004,0.00011,2]
[336613444,1724974240471,-280.06999987,0.00011,2]
[336613446,1724974240482,-416414.31391161,0.00011,2]
[336613448,1724974240497,-1092.27862809,0.00011,2]
[336613450,1724974240507,-991.46458985,0.00011,2]
[336613452,1724974240518,-2083.144991,0.00011,2]
[336613454,1724974240528,-2409.35153101,0.00011,2]
[336613456,1724974240539,-1225.9364753,0.00011,2]
[336613459,1724974240552,-1548.34307602,0.00011,2]
[336613461,1724974240563,-509.73860691,0.00011,2]
[336613463,1724974240574,-649.02,0.00011,2]
[336613553,1724974241640,445.61802287,0.000109,2]
[336613632,1724974245301,-3266.13843024,0.00011,2]
[336613640,1724974252464,179.65493734,0.000109,2]
[336613641,1724974260068,500.0,0.00022,60]
[336613642,1724974270119,500.0,0.00022,60]
[336613643,1724974299638,326.80419,0.000109,2]
[336613644,1724974314554,-165.19581,0.00011,2]
[336613645,1724974378943,297.07868192,0.000109,2]
[336613646,1724974402128,346.19062433,0.000109,2]
[336613647,1724974412933,176.71,0.00010959,2]
[336613648,1724974418787,30042.65038404,0.000109,2]
[336613649,1724974421406,208.19045059,0.00010898,2]
[336613650,1724974429892,217.86946,0.000109,2]
[336613651,1724974496777,538.85193623,0.000109,2]
[336613652,1724974516656,1089.28850033,0.000109,2]
[336613653,1724974517465,346.19062433,0.000109,2]
[336613654,1724974518977,176.86775351,0.000109,2]
[336613655,1724974561682,959.0,0.000109,2]
[336613656,1724974651106,359.23462416,0.000109,2]
[336613657,1724974651833,726.19233356,0.000109,2]
[336613658,1724974676276,3000.0,0.000109,2]
[336613659,1724974720526,185.00290264,0.000109,2]
[336613660,1724974724097,170.49003,0.000109,2]
[336613661,1724974767832,2500.0,0.000109,2]
[336613662,1724974786657,10537.92195993,0.00010897,2]
[336613663,1724974790938,534.5533,0.000109,2]
[336613664,1724974791860,484.12822238,0.000109,2]
[336613665,1724974806436,239.48974944,0.000109,2]
[336613666,1724974810628,170.49004,0.000109,2]
[336613667,1724974844651,27038.38534569,0.000109,2]
[336613668,1724974853440,2083.33333,0.000109,2]
[336613669,1724974896254,170.49004,0.000109,2]
[336613670,1724974900003,179.08401675,0.000109,2]
[336613671,1724974911699,160.08,0.00010959,2]
[336613673,1724974939093,1736.11111,0.00010959,2]
[336613674,1724974946449,2324.21109593,0.000109,2]
[336613675,1724974965982,159.65983296,0.000109,2]
[336613676,1724974981845,1475.17426,0.00010959,2]
[336613677,1724975103468,150.0,0.00010959,2]
[336613678,1724975120968,159.65983295,0.000109,2]
[336613679,1724975132665,3387.1684,0.000109,2]
[336613680,1724975229027,1737.72824888,0.000109,2]
[336613681,1724975266264,159.65983295,0.000109,2]
[336613682,1724975271539,24334.54681104,0.000109,2]
[336613683,1724975294405,346.0545,0.000109,2]
[336613691,1724975376793,160.32,0.00010959,2]
[336613698,1724975434618,-433.0,0.00010986,2]
[336613699,1724975434628,-69.90722895,0.00010989,2]
[336613700,1724975434641,-80.09277105,0.00010989,2]
[336613701,1724975434650,-300.0,0.00010989,2]
[336613702,1724975434659,-15772.33045167,0.0001099,2]
[336613703,1724975434671,-7119.34191404,0.0001099,2]
[336613704,1724975434680,-153.59,0.0001099,2]
[336613705,1724975434689,-153.59,0.0001099,2]
[336613706,1724975434698,-521.67702326,0.00010997,2]